fUSD/lending_fUSD_20250213
["ID","MTS","AMOUNT","RATE_DAILY","PERIOD"]
[352928339,1739439038050,-5338.61,0.00015198,2]
[352928340,1739439038060,-2372.59,0.00015198,2]
[352928341,1739439038070,-1851.57,0.00015198,2]
[352928342,1739439038079,-4739.74,0.00015198,2]
[352928343,1739439038089,-11575.69,0.00015198,2]
[352928344,1739439038100,-3250.84,0.00015198,2]
[352928345,1739439038109,-4056.86,0.00015198,2]
[352928346,1739439038119,-4074.45,0.00015198,2]
[352928347,1739439038129,-3714.14689609,0.00015198,2]
[352928353,1739439039026,-272.51310391,0.00015198,2]
[352928354,1739439039036,-4136.76,0.00015198,2]
[352928355,1739439039045,-2949.81,0.00015198,2]
[352928356,1739439039056,-1344.5697196,0.00015198,2]
[352928357,1739439039069,-1421.6402804,0.00015198,2]
[352928358,1739439039078,-1956.93050285,0.00015198,2]
[352928359,1739439039106,-99.08949715,0.00015198,2]
[352928360,1739439039116,-3364.67,0.00015198,2]
[352928361,1739439039126,-3661.92,0.00015198,2]
[352928362,1739439039135,-2438.46557778,0.00015198,2]
[352928363,1739439039956,-500.0,0.00015197,2]
[352928364,1739439039966,-73.619998,0.00015198,2]
[352928365,1739439040065,-461.584,0.00015198,2]
[352928366,1739439040077,-705.20017422,0.00015198,2]
[352928367,1739439040090,-394.04068009,0.00015198,2]
[352928368,1739439040102,-790.33126699,0.00015198,2]
[352928369,1739439040165,-1279.41830292,0.00015198,2]
[352928370,1739439040175,-299.09318354,0.00015198,2]
[352928371,1739439040187,-968.82380685,0.00015198,2]
[352928372,1739439040236,-2978.38300961,0.00015198,2]
[352928373,1739439040246,-1961.43,0.00015198,2]
[352928374,1739439040255,-3210.24319039,0.00015198,2]
[352928378,1739439042894,-500.0,0.00015197,2]
[352928379,1739439042904,-2667.65680961,0.00015198,2]
[352928380,1739439042913,-4519.93,0.00015198,2]
[352928381,1739439042924,-2096.65,0.00015198,2]
[352928382,1739439042934,-4908.41,0.00015198,2]
[352928383,1739439042944,-3723.7,0.00015198,2]
[352928384,1739439042954,-2771.33,0.00015198,2]
[352928385,1739439042963,-8666.6,0.00015198,2]
[352928386,1739439042973,-563.01,0.00015198,2]
[352928387,1739439042982,-500.0,0.00015198,2]
[352928388,1739439042992,-6891.16,0.00015198,2]
[352928389,1739439043001,-2706.8,0.00015198,2]
[352928390,1739439043010,-2747.89,0.00015198,2]
[352928391,1739439043020,-3807.37,0.00015198,2]
[352928392,1739439043029,-500.0,0.00015198,2]
[352928393,1739439043039,-1558.9531904,0.00015198,2]
[352928394,1739439043316,-298.362,0.00015197,2]
[352928395,1739439043328,-205.76268518,0.00015197,2]
[352928396,1739439043338,-1921.73731502,0.00015198,2]
[352928397,1739439043350,-1141.06949458,0.00015198,2]
[352928398,1739439043360,-1821.65,0.00015198,2]
[352928399,1739439043370,-1635.8,0.00015198,2]
[352928400,1739439043379,-500.0,0.00015198,2]
[352928401,1739439043389,-4517.16,0.00015198,2]
[352928402,1739439043398,-1537.29,0.00015198,2]
[352928403,1739439043408,-1142.18,0.00015198,2]
[352928404,1739439043417,-5297.98,0.00015198,2]
[352928405,1739439043426,-935.03,0.00015198,2]
[352928407,1739439043436,-2555.38,0.00015198,2]
[352928409,1739439043446,-5487.95,0.00015198,2]
[352928411,1739439043458,-500.0,0.00015198,2]
[352928412,1739439043467,-2238.5,0.00015198,2]
[352928413,1739439043477,-2304.51,0.00015198,2]
[352928414,1739439043487,-1978.22,0.00015198,2]
[352928415,1739439043498,-500.0,0.00015198,2]
[352928416,1739439043507,-4323.73,0.00015198,2]
[352928417,1739439043517,-500.0,0.00015199,2]
[352928418,1739439043527,-500.0,0.00015199,2]
[352928419,1739439043538,-786.83,0.00015199,2]
[352928420,1739439043549,-595.98482865,0.00015199,2]
[352928422,1739439043558,-500.0,0.00015199,2]
[352928423,1739439043568,-503.12081949,0.00015199,2]
[352928424,1739439043578,-500.0,0.00015199,2]
[352928425,1739439043590,-500.0,0.00015199,2]
[352928426,1739439043604,-500.0,0.00015199,2]
[352928427,1739439043614,-544.88,0.00015199,2]
[352928428,1739439043624,-500.0,0.00015199,2]
[352928429,1739439043634,-698.3,0.00015199,2]
[352928430,1739439043644,-500.0,0.00015199,2]
[352928431,1739439043655,-500.0,0.00015199,2]
[352928432,1739439043665,-1045.48,0.00015199,2]
[352928433,1739439043674,-500.0,0.00015199,2]
[352928434,1739439043684,-500.0,0.00015199,2]
[352928435,1739439043693,-500.0,0.00015199,2]
[352928436,1739439043703,-500.0,0.00015199,2]
[352928437,1739439043712,-1158.91,0.00015199,2]
[352928438,1739439043722,-500.92111255,0.00015199,2]
[352928439,1739439043732,-500.0,0.00015199,2]
[352928440,1739439043742,-500.0,0.00015199,2]
[352928441,1739439043752,-153.65022207,0.00015199,2]
[352928442,1739439043761,-503.85740636,0.00015199,2]
[352928443,1739439043771,-500.0,0.00015199,2]
[352928444,1739439043781,-500.0,0.00015199,2]
[352928445,1739439043792,-1230.14,0.00015199,2]
[352928446,1739439043804,-500.0,0.00015199,2]
[352928447,1739439043813,-1146.35,0.00015199,2]
[352928448,1739439043823,-167.52488536,0.00015199,2]
[352928449,1739439043833,-500.0,0.00015199,2]
[352928450,1739439043842,-501.23967504,0.00015199,2]
[352928451,1739439043853,-500.0,0.00015199,2]
[352928452,1739439043862,-500.0,0.00015199,2]
[352928453,1739439043872,-500.0,0.00015199,2]
[352928454,1739439043881,-500.0,0.00015199,2]
[352928455,1739439043891,-500.0,0.00015199,2]
[352928456,1739439043900,-500.0,0.00015199,2]
[352928457,1739439043912,-502.53226677,0.00015199,2]
[352928458,1739439043925,-500.0,0.00015199,2]
[352928459,1739439043934,-500.0,0.00015199,2]
[352928460,1739439043944,-500.0,0.00015199,2]
[352928461,1739439043953,-500.0,0.00015199,2]
[352928462,1739439043963,-500.0,0.00015199,2]
[352928463,1739439043972,-194.76708853,0.00015199,2]
[352928464,1739439043982,-500.0,0.00015199,2]
[352928465,1739439043991,-500.0,0.00015199,2]
[352928466,1739439044000,-749.99,0.00015199,2]
[352928467,1739439044010,-500.0,0.00015199,2]
[352928468,1739439044019,-500.0,0.00015199,2]
[352928469,1739439044028,-502.14282436,0.00015199,2]
[352928470,1739439044040,-500.0,0.00015199,2]
[352928471,1739439044049,-508.71092781,0.00015199,2]
[352928472,1739439044059,-500.0,0.00015199,2]
[352928473,1739439044068,-503.76665508,0.00015199,2]
[352928474,1739439044077,-500.0,0.00015199,2]
[352928475,1739439044087,-630.95,0.00015199,2]
[352928476,1739439044097,-500.0,0.00015199,2]
[352928477,1739439044106,-500.0,0.00015199,2]
[352928478,1739439044116,-500.0,0.00015199,2]
[352928479,1739439044127,-500.0,0.00015199,2]
[352928480,1739439044136,-503.5475821,0.00015199,2]
[352928481,1739439044146,-500.0,0.00015199,2]
[352928482,1739439044155,-500.0,0.00015199,2]
[352928483,1739439044164,-500.0,0.00015199,2]
[352928484,1739439044174,-500.0,0.00015199,2]
[352928485,1739439044183,-503.08742924,0.00015199,2]
[352928486,1739439044193,-202.32152136,0.00015199,2]
[352928487,1739439044202,-500.0,0.00015199,2]
[352928488,1739439044212,-501.69146371,0.00015199,2]
[352928489,1739439044222,-307.32239275,0.00015199,2]
[352928490,1739439044232,-500.0,0.00015199,2]
[352928491,1739439044241,-503.69086726,0.00015199,2]
[352928492,1739439044251,-203.15045017,0.00015199,2]
[352928493,1739439044260,-500.0,0.00015199,2]
[352928494,1739439044435,-500.0,0.00015199,2]
[352928495,1739439044446,-500.0,0.00015199,2]
[352928496,1739439044457,-501.09823119,0.00015199,2]
[352928497,1739439044467,-500.0,0.00015199,2]
[352928498,1739439044478,-500.0,0.00015199,2]
[352928499,1739439044487,-500.0,0.00015199,2]
[352928500,1739439044498,-500.0,0.00015199,2]
[352928501,1739439044507,-501.35791039,0.00015199,2]
[352928502,1739439044517,-1579.43,0.00015199,2]
[352928503,1739439044527,-500.0,0.00015199,2]
[352928504,1739439044539,-500.0,0.00015199,2]
[352928505,1739439044549,-500.0,0.00015199,2]
[352928506,1739439044559,-500.0,0.00015199,2]
[352928507,1739439044569,-500.0,0.00015199,2]
[352928508,1739439044579,-500.0,0.00015199,2]
[352928509,1739439044589,-500.0,0.00015199,2]
[352928510,1739439044599,-505.49818297,0.00015199,2]
[352928511,1739439044609,-500.0,0.00015199,2]
[352928512,1739439044618,-500.0,0.00015199,2]
[352928513,1739439044629,-500.0,0.00015199,2]
[352928514,1739439044639,-1096.94,0.00015199,2]
[352928515,1739439044649,-352.35507347,0.00015199,2]
[352928516,1739439044658,-623.85,0.00015199,2]
[352928517,1739439044667,-500.0,0.00015199,2]
[352928518,1739439044677,-502.90483694,0.00015199,2]
[352928519,1739439044686,-500.0,0.00015199,2]
[352928520,1739439044696,-500.0,0.00015199,2]
[352928521,1739439044706,-500.0,0.00015199,2]
[352928522,1739439044716,-500.0,0.00015199,2]
[352928523,1739439044727,-690.94,0.00015199,2]
[352928524,1739439044737,-231.12346754,0.00015199,2]
[352928525,1739439044747,-259.25257864,0.00015199,2]
[352928526,1739439044757,-500.65468825,0.00015199,2]
[352928527,1739439044767,-500.0,0.00015199,2]
[352928528,1739439044777,-500.0,0.00015199,2]
[352928529,1739439044787,-500.0,0.00015199,2]
[352928530,1739439044796,-500.0,0.00015199,2]
[352928531,1739439044806,-500.0,0.00015199,2]
[352928532,1739439044815,-500.0,0.00015199,2]
[352928533,1739439044824,-500.0,0.00015199,2]
[352928534,1739439044833,-500.0,0.00015199,2]
[352928535,1739439044843,-503.09513198,0.00015199,2]
[352928536,1739439044855,-500.0,0.00015199,2]
[352928537,1739439044865,-500.0,0.00015199,2]
[352928538,1739439044874,-500.0,0.00015199,2]
[352928539,1739439044884,-502.76124435,0.00015199,2]
[352928540,1739439044894,-500.0,0.00015199,2]
[352928541,1739439044904,-500.0,0.00015199,2]
[352928542,1739439044913,-500.0,0.00015199,2]
[352928543,1739439044923,-500.0,0.00015199,2]
[352928544,1739439044932,-507.41754611,0.00015199,2]
[352928545,1739439044942,-500.0,0.00015199,2]
[352928546,1739439044951,-503.72249523,0.00015199,2]
[352928547,1739439044961,-1281.76,0.00015199,2]
[352928548,1739439044972,-500.0,0.00015199,2]
[352928549,1739439044981,-500.0,0.00015199,2]
[352928550,1739439044991,-500.0,0.00015199,2]
[352928551,1739439045000,-500.0,0.00015199,2]
[352928552,1739439045010,-500.0,0.00015199,2]
[352928553,1739439045020,-500.0,0.00015199,2]
[352928554,1739439045030,-500.0,0.00015199,2]
[352928555,1739439045044,-500.0,0.00015199,2]
[352928556,1739439045053,-500.0,0.00015199,2]
[352928557,1739439045064,-500.0,0.00015199,2]
[352928558,1739439045074,-1024.15,0.00015199,2]
[352928559,1739439045085,-500.0,0.00015199,2]
[352928560,1739439045097,-500.0,0.00015199,2]
[352928561,1739439045108,-500.0,0.00015199,2]
[352928562,1739439045117,-501.48597442,0.00015199,2]
[352928563,1739439045127,-300.12952303,0.00015199,2]
[352928564,1739439045137,-500.0,0.00015199,2]
[352928565,1739439045147,-500.0,0.00015199,2]
[352928566,1739439045156,-500.0,0.00015199,2]
[352928567,1739439045166,-500.0,0.00015199,2]
[352928568,1739439045175,-500.0,0.00015199,2]
[352928569,1739439045185,-500.0,0.00015199,2]
[352928570,1739439045195,-500.0,0.00015199,2]
[352928571,1739439045204,-1745.93,0.00015199,2]
[352928572,1739439045214,-500.0,0.00015199,2]
[352928573,1739439045224,-500.0,0.00015199,2]
[352928574,1739439045233,-500.0,0.00015199,2]
[352928575,1739439045244,-500.0,0.00015199,2]
[352928576,1739439045253,-500.0,0.00015199,2]
[352928577,1739439045263,-500.0,0.00015199,2]
[352928578,1739439045272,-500.0,0.00015199,2]
[352928579,1739439045282,-501.64952675,0.00015199,2]
[352928580,1739439045291,-516.47719436,0.00015199,2]
[352928581,1739439045301,-500.0,0.00015199,2]
[352928582,1739439045311,-500.0,0.00015199,2]
[352928583,1739439045320,-1208.49,0.00015199,2]
[352928584,1739439045330,-500.0,0.00015199,2]
[352928585,1739439045340,-1382.27,0.00015199,2]
[352928586,1739439045352,-500.0,0.00015199,2]
[352928587,1739439045362,-582.72,0.00015199,2]
[352928588,1739439045371,-780.79,0.00015199,2]
[352928589,1739439045380,-500.0,0.00015199,2]
[352928590,1739439045390,-500.0,0.00015199,2]
[352928591,1739439045400,-2450.85,0.00015199,2]
[352928592,1739439045410,-500.0,0.00015199,2]
[352928593,1739439045419,-500.0,0.00015199,2]
[352928594,1739439045429,-892.38,0.00015199,2]
[352928595,1739439045438,-501.15525487,0.00015199,2]
[352928596,1739439045450,-500.0,0.00015199,2]
[352928597,1739439045465,-1501.57,0.00015199,2]
[352928598,1739439045474,-500.0,0.00015199,2]
[352928599,1739439045484,-500.0,0.00015199,2]
[352928600,1739439045495,-530.56,0.00015199,2]
[352928601,1739439045504,-2075.72,0.00015199,2]
[352928602,1739439045514,-1198.6,0.00015199,2]
[352928603,1739439045523,-500.0,0.00015199,2]
[352928604,1739439045534,-500.0,0.00015199,2]
[352928605,1739439045543,-1178.2,0.00015199,2]
[352928606,1739439045553,-500.0,0.00015199,2]
[352928607,1739439045563,-501.70268993,0.00015199,2]
[352928608,1739439045572,-500.0,0.00015199,2]
[352928609,1739439045582,-2180.51,0.00015199,2]
[352928610,1739439045592,-500.0,0.00015199,2]
[352928611,1739439045604,-500.0,0.00015199,2]
[352928612,1739439045613,-500.0,0.00015199,2]
[352928613,1739439045623,-500.0,0.00015199,2]
[352928614,1739439045632,-500.0,0.00015199,2]
[352928615,1739439045641,-1149.89,0.00015199,2]
[352928616,1739439045650,-500.0,0.00015199,2]
[352928617,1739439045659,-500.0,0.00015199,2]
[352928618,1739439045671,-500.0,0.00015199,2]
[352928619,1739439045681,-500.0,0.00015199,2]
[352928620,1739439045691,-906.82,0.00015199,2]
[352928622,1739439045702,-500.0,0.00015199,2]
[352928624,1739439045712,-500.0,0.00015199,2]
[352928626,1739439045722,-1356.88,0.00015199,2]
[352928629,1739439045731,-1025.49,0.00015199,2]
[352928631,1739439045742,-500.0,0.00015199,2]
[352928632,1739439045752,-503.24398868,0.00015199,2]
[352928634,1739439045762,-634.65,0.00015199,2]
[352928635,1739439045776,-500.0,0.00015199,2]
[352928636,1739439045787,-844.02,0.00015199,2]
[352928637,1739439045797,-505.53185347,0.00015199,2]
[352928638,1739439045807,-833.97,0.00015199,2]
[352928639,1739439045817,-500.0,0.00015199,2]
[352928640,1739439045826,-500.0,0.00015199,2]
[352928641,1739439045836,-500.0,0.00015199,2]
[352928642,1739439045845,-500.0,0.00015199,2]
[352928643,1739439045856,-500.0,0.00015199,2]
[352928644,1739439045866,-501.55,0.00015199,2]
[352928645,1739439045876,-500.0,0.00015199,2]
[352928646,1739439045886,-1735.91,0.00015199,2]
[352928647,1739439045895,-500.0,0.00015199,2]
[352928648,1739439045905,-920.38,0.00015199,2]
[352928649,1739439045917,-645.01,0.00015199,2]
[352928650,1739439045928,-353.12578562,0.00015199,2]
[352928651,1739439045939,-500.0,0.00015199,2]
[352928652,1739439045949,-1056.02,0.00015199,2]
[352928653,1739439045959,-500.00832842,0.00015199,2]
[352928654,1739439045969,-504.74650064,0.00015199,2]
[352928655,1739439045978,-500.0,0.00015199,2]
[352928656,1739439045988,-500.0,0.00015199,2]
[352928657,1739439045999,-500.0,0.00015199,2]
[352928658,1739439046010,-500.0,0.00015199,2]
[352928659,1739439046021,-782.45,0.00015199,2]
[352928660,1739439046030,-500.0,0.00015199,2]
[352928661,1739439046040,-500.0,0.00015199,2]
[352928662,1739439046050,-500.0,0.00015199,2]
[352928663,1739439046059,-500.0,0.00015199,2]
[352928664,1739439046069,-500.0,0.00015199,2]
[352928665,1739439046079,-500.0,0.00015199,2]
[352928666,1739439046088,-1201.45,0.00015199,2]
[352928667,1739439046098,-500.0,0.00015199,2]
[352928668,1739439046107,-500.0,0.00015199,2]
[352928669,1739439046117,-500.0,0.00015199,2]
[352928670,1739439046126,-899.38,0.00015199,2]
[352928671,1739439046136,-2012.49,0.00015199,2]
[352928672,1739439046146,-815.35,0.00015199,2]
[352928674,1739439046155,-1772.7,0.00015199,2]
[352928676,1739439046166,-500.0,0.00015199,2]
[352928677,1739439046183,-500.0,0.00015199,2]
[352928678,1739439046192,-500.0,0.00015199,2]
[352928680,1739439046204,-500.0,0.00015199,2]
[352928681,1739439046213,-1348.13,0.00015199,2]
[352928683,1739439046223,-1200.0,0.00015199,2]
[352928684,1739439046234,-500.0,0.00015199,2]
[352928685,1739439046244,-500.0,0.00015199,2]
[352928686,1739439046254,-500.0,0.00015199,2]
[352928687,1739439046264,-507.5185619,0.00015199,2]
[352928688,1739439046276,-556.32,0.00015199,2]
[352928689,1739439046287,-1039.18,0.00015199,2]
[352928690,1739439046296,-501.61343424,0.00015199,2]
[352928691,1739439046306,-500.0,0.00015199,2]
[352928692,1739439046316,-830.12,0.00015199,2]
[352928693,1739439046326,-500.0,0.00015199,2]
[352928694,1739439046335,-500.0,0.00015199,2]
[352928695,1739439046345,-500.0,0.00015199,2]
[352928696,1739439046356,-2507.42,0.00015199,2]
[352928697,1739439046366,-500.0,0.00015199,2]
[352928698,1739439046376,-500.0,0.00015199,2]
[352928699,1739439046386,-500.0,0.00015199,2]
[352928700,1739439046396,-502.82732808,0.00015199,2]
[352928701,1739439046405,-500.0,0.00015199,2]
[352928702,1739439046414,-502.48499683,0.00015199,2]
[352928703,1739439046423,-500.0,0.00015199,2]
[352928704,1739439046432,-500.0,0.00015199,2]
[352928705,1739439046442,-630.68,0.00015199,2]
[352928706,1739439046451,-500.0,0.00015199,2]
[352928707,1739439046463,-500.0,0.00015199,2]
[352928708,1739439046473,-500.0,0.00015199,2]
[352928709,1739439046482,-845.31,0.00015199,2]
[352928710,1739439046492,-500.0,0.00015199,2]
[352928711,1739439046503,-1244.09,0.00015199,2]
[352928712,1739439046512,-503.38721378,0.00015199,2]
[352928713,1739439046521,-500.0,0.00015199,2]
[352928714,1739439046683,-884.05,0.00015199,2]
[352928715,1739439046692,-502.18872014,0.00015199,2]
[352928716,1739439046702,-500.0,0.00015199,2]
[352928717,1739439046712,-500.0,0.00015199,2]
[352928718,1739439046722,-500.0,0.00015199,2]
[352928719,1739439046732,-500.0,0.00015199,2]
[352928720,1739439046743,-500.0,0.00015199,2]
[352928721,1739439046753,-500.0,0.00015199,2]
[352928722,1739439046763,-869.68,0.00015199,2]
[352928723,1739439046772,-605.4,0.00015199,2]
[352928724,1739439046783,-500.0,0.00015199,2]
[352928725,1739439046792,-500.0,0.00015199,2]
[352928726,1739439046802,-755.37,0.00015199,2]
[352928727,1739439046811,-500.0,0.00015199,2]
[352928728,1739439046820,-500.0,0.00015199,2]
[352928729,1739439046829,-515.63048303,0.00015199,2]
[352928730,1739439046838,-500.0,0.00015199,2]
[352928731,1739439046848,-500.0,0.00015199,2]
[352928732,1739439046857,-500.0,0.00015199,2]
[352928733,1739439046867,-500.0,0.00015199,2]
[352928734,1739439046876,-500.0,0.00015199,2]
[352928735,1739439046886,-659.8,0.00015199,2]
[352928736,1739439046895,-500.0,0.00015199,2]
[352928737,1739439046905,-957.21,0.00015199,2]
[352928738,1739439046914,-484.16669611,0.00015199,2]
[352928739,1739439046923,-1292.7,0.00015199,2]
[352928740,1739439046935,-500.0,0.00015199,2]
[352928741,1739439046946,-500.0,0.00015199,2]
[352928742,1739439046956,-501.7451089,0.00015199,2]
[352928743,1739439046966,-500.0,0.00015199,2]
[352928744,1739439046977,-500.0,0.00015199,2]
[352928745,1739439046987,-751.26,0.00015199,2]
[352928746,1739439046998,-500.0,0.00015199,2]
[352928747,1739439047009,-500.0,0.00015199,2]
[352928748,1739439047019,-500.0,0.00015199,2]
[352928749,1739439047029,-498.97114574,0.00015199,2]
[352928750,1739439047039,-1469.38,0.00015199,2]
[352928751,1739439047049,-500.0,0.00015199,2]
[352928752,1739439047059,-1409.37,0.00015199,2]
[352928753,1739439047068,-1234.17,0.00015199,2]
[352928754,1739439047077,-1153.71,0.00015199,2]
[352928755,1739439047087,-901.84,0.00015199,2]
[352928756,1739439047097,-500.0,0.00015199,2]
[352928757,1739439047107,-500.0,0.00015199,2]
[352928758,1739439047117,-500.0,0.00015199,2]
[352928759,1739439047127,-2187.38,0.00015199,2]
[352928760,1739439047136,-1040.7,0.00015199,2]
[352928761,1739439047145,-502.22391837,0.00015199,2]
[352928762,1739439047155,-872.3,0.00015199,2]
[352928763,1739439047164,-500.0,0.00015199,2]
[352928764,1739439047175,-500.0,0.00015199,2]
[352928765,1739439047185,-1219.9,0.00015199,2]
[352928766,1739439047195,-1307.42,0.00015199,2]
[352928767,1739439047204,-500.0,0.00015199,2]
[352928768,1739439047216,-2202.37,0.00015199,2]
[352928769,1739439047226,-502.57040573,0.00015199,2]
[352928770,1739439047235,-500.0,0.00015199,2]
[352928771,1739439047245,-503.33312868,0.00015199,2]
[352928772,1739439047255,-500.0,0.00015199,2]
[352928773,1739439047265,-500.0,0.00015199,2]
[352928774,1739439047275,-500.0,0.00015199,2]
[352928775,1739439047284,-501.99027188,0.00015199,2]
[352928776,1739439047293,-500.0,0.00015199,2]
[352928777,1739439047302,-1818.2,0.00015199,2]
[352928778,1739439047313,-770.06,0.00015199,2]
[352928779,1739439047322,-500.0,0.00015199,2]
[352928780,1739439047333,-1332.76,0.00015199,2]
[352928781,1739439047344,-1015.51,0.00015199,2]
[352928782,1739439047354,-500.0,0.00015199,2]
[352928783,1739439047364,-1954.58,0.00015199,2]
[352928784,1739439047373,-753.28,0.00015199,2]
[352928785,1739439047383,-500.0,0.00015199,2]
[352928786,1739439047392,-500.0,0.00015199,2]
[352928787,1739439047402,-685.49,0.00015199,2]
[352928788,1739439047411,-500.0,0.00015199,2]
[352928789,1739439047422,-775.98,0.00015199,2]
[352928790,1739439047431,-929.64,0.00015199,2]
[352928791,1739439047442,-500.0,0.00015199,2]
[352928792,1739439047453,-500.0,0.00015199,2]
[352928793,1739439047465,-500.0,0.00015199,2]
[352928794,1739439047475,-500.0,0.00015199,2]
[352928795,1739439047485,-500.0,0.00015199,2]
[352928796,1739439047495,-500.0,0.00015199,2]
[352928797,1739439047505,-737.03,0.00015199,2]
[352928798,1739439047515,-1523.07,0.00015199,2]
[352928799,1739439047524,-500.0,0.00015199,2]
[352928800,1739439047535,-500.0,0.00015199,2]
[352928801,1739439047545,-2048.28,0.00015199,2]
[352928802,1739439047554,-563.83,0.00015199,2]
[352928803,1739439047564,-500.0,0.00015199,2]
[352928804,1739439047574,-503.11014549,0.00015199,2]
[352928805,1739439047583,-843.17,0.00015199,2]
[352928806,1739439047593,-500.0,0.00015199,2]
[352928807,1739439047604,-500.0,0.00015199,2]
[352928808,1739439047614,-500.0,0.00015199,2]
[352928809,1739439047623,-3509.04,0.00015199,2]
[352928810,1739439047633,-1669.61,0.00015199,2]
[352928811,1739439047643,-951.21,0.00015199,2]
[352928812,1739439047653,-500.0,0.00015199,2]
[352928813,1739439047664,-1481.59,0.00015199,2]
[352928814,1739439047674,-569.11,0.00015199,2]
[352928815,1739439047684,-1212.07,0.00015199,2]
[352928816,1739439047695,-1385.97,0.00015199,2]
[352928817,1739439047706,-1151.49,0.00015199,2]
[352928818,1739439047715,-500.0,0.00015199,2]
[352928819,1739439047726,-581.46,0.00015199,2]
[352928820,1739439047736,-3279.43,0.00015199,2]
[352928821,1739439047748,-640.50693526,0.00015199,2]
[352928822,1739439047758,-1898.12,0.00015199,2]
[352928823,1739439047768,-500.0,0.00015199,2]
[352928824,1739439047777,-543.04848802,0.00015199,2]
[352928825,1739439047785,-828.34,0.00015199,2]
[352928826,1739439047794,-500.0,0.00015199,2]
[352928827,1739439047803,-2026.28,0.00015199,2]
[352928828,1739439047812,-480.04751874,0.00015199,2]
[352928829,1739439047821,-500.0,0.00015199,2]
[352928830,1739439047830,-3408.86,0.00015199,2]
[352928831,1739439047840,-3920.22,0.00015199,2]
[352928832,1739439047849,-2876.7,0.00015199,2]
[352928833,1739439047859,-500.0,0.00015199,2]
[352928834,1739439047867,-500.0,0.00015199,2]
[352928835,1739439047877,-500.0,0.00015199,2]
[352928836,1739439047886,-526.68296523,0.00015199,2]
[352928837,1739439047895,-500.0,0.00015199,2]
[352928838,1739439047904,-978.85,0.00015199,2]
[352928839,1739439047914,-500.0,0.00015199,2]
[352928840,1739439047924,-512.86778275,0.00015199,2]
[352928841,1739439047933,-515.07,0.00015199,2]
[352928842,1739439047943,-500.0,0.00015199,2]
[352928843,1739439047952,-500.0,0.00015199,2]
[352928844,1739439047961,-500.0,0.00015199,2]
[352928845,1739439047971,-3166.84,0.00015199,2]
[352928846,1739439047981,-500.0,0.00015199,2]
[352928847,1739439047990,-500.0,0.00015199,2]
[352928848,1739439047999,-505.62852134,0.00015199,2]
[352928849,1739439048009,-3497.07,0.00015199,2]
[352928850,1739439048018,-1069.86,0.00015199,2]
[352928851,1739439048028,-500.0,0.00015199,2]
[352928852,1739439048038,-500.0,0.00015199,2]
[352928853,1739439048047,-2422.2,0.00015199,2]
[352928854,1739439048057,-507.93358603,0.00015199,2]
[352928855,1739439048067,-2326.09,0.00015199,2]
[352928856,1739439048076,-1544.45,0.00015199,2]
[352928857,1739439048086,-2858.24,0.00015199,2]
[352928858,1739439048096,-500.0,0.00015199,2]
[352928859,1739439048107,-1383.68,0.00015199,2]
[352928860,1739439048118,-4799.11,0.00015199,2]
[352928861,1739439048128,-500.0,0.00015199,2]